Cogmind - Beta 9 @@@ ROGUE MODE // 2019.10.26 @ 11:46:58 Player: octapi Result: Escaped! Performance ------------- Evolutions (9) 4500 Regions Visited (23) 4600 Robots Destroyed (151) 755 Value Destroyed (9730) 9730 Prototype IDs (21) 420 Alien Tech Used (0) 0 Bonus (15717) 15717 TOTAL SCORE: 35722 Bonus ------- High Alert Combat Kills 1627 Follower Combat Kills 5377 Entered Garrisons 1000 Used RIF Installer 2500 Aligned with FarCom 300 Built Enhanced Grunts 300 A7 Reached Mainframe 300 Met R17 at Cetus 500 Met R17 at Research 2000 Win 3000 Friendly Fire -1187 Cogmind --------- Core Integrity 1184/1600 Matter 233/300 Energy 176/190 System Corruption 43% Temperature Cool (103) Location To Epsilon Eridani Parts ------- Power (2) Light Quantum Reactor Propulsion (6) Biometal Heavy Treads Biometal Heavy Treads Utility (14) Advanced Coolant Injector Large Storage Unit Large Storage Unit Weapon (3) Inventory (16) Improved Kinecellerator Advanced Force Field Advanced Force Field Improved Remote Shield Relay Coupler [Swarmer] (46) Relay Coupler [Demolisher] (31) Railgun Railgun Hypervelocity Railgun Improved Remote Datajack Peak State ------------ Power Antimatter Reactor Light Quantum Reactor Propulsion Improved Treads Biometal Medium Treads Biometal Medium Treads Biometal Medium Treads Centrium Heavy Treads Utility Advanced Coolant Injector Large Storage Unit Large Storage Unit Large Storage Unit Energy Well Improved Energy Well Remote Force Field Improved Hacking Suite Advanced Hacking Suite Experimental System Shield Relay Coupler [Swarmer] Relay Coupler [Grunt] Relay Coupler [Sentry] Weapon Hypervelocity Railgun Hypervelocity Railgun Improved Remote Datajack Inventory Light Quantum Reactor Light Quantum Reactor Biometal Heavy Treads Biometal Heavy Treads Improved Kinecellerator Advanced Force Field Advanced Force Field Improved Remote Shield Relay Coupler [Swarmer] Relay Coupler [Demolisher] Neutron Cannon Enhanced Nova Cannon Railgun Railgun Railgun Hypervelocity Railgun Linear Accelerator Improved Remote Datajack Force Lance [Rating: 154] Favorites ----------- Power Improved Ion Engine Engine Improved Ion Engine Power Core Enhanced Nuclear Core Reactor Antimatter Reactor Propulsion Improved Treads Treads Improved Treads Leg Aluminum Leg Utility Large Storage Unit Device Remote Force Field Storage Large Storage Unit Processor Improved Signal Interpreter Hackware Relay Coupler [Sentry] Protection Improved Medium Armor Plating Weapon Remote Datajack Energy Gun EM Pulse Gun Energy Cannon Heavy Particle Cannon Ballistic Gun Railgun Ballistic Cannon Hypervelocity Mass Driver Launcher Grenade Launcher Special Weapon Remote Datajack Impact Weapon Great Maul Slashing Weapon Greatsword Piercing Weapon Force Lance Build | -11 -10 -10 -10 -9 -8 -8 -7 -7 -7 -7 -6 -6 -6 -6 -6 -5 -5 -4 -4 -4 -3 -2 -1 ------- Run | Scr Mat Min Exi Min Mat Gar Fac Gar Fac Gar Fac Gar Fac Ext Cet Fac Gar Fac Upp Upp Res Res Acc Slots Evolved 18 | . . . . . 4 . 2 . . . 2 . . . . 2 . 2 . . 2 2 2 Power 1 | . . . . . . . . . . . . . . . . . . . . . . . 1 Propulsion 4 | . . . . . 2 . . . . . . . . . . 1 . . . . . 1 . Utility 12 | . . . . . 2 . 2 . . . 2 . . . . 1 . 2 . . 1 1 1 Weapon 1 | . . . . . . . . . . . . . . . . . . . . . 1 . . Parts Attached 247 | 6 8 1 10 . 6 17 3 22 7 16 4 26 7 16 9 7 10 21 3 2 21 12 13 Power 13 | 1 2 . . . . 1 . 1 1 . . . . 1 . 1 . 1 1 . . . 3 Engine 5 | 1 2 . . . . 1 . 1 . . . . . . . . . . . . . . . Core 1 | . . . . . . . . . 1 . . . . . . . . . . . . . . Reactor 7 | . . . . . . . . . . . . . . 1 . 1 . 1 1 . . . 3 Propulsion 44 | 2 5 . . . 2 2 . 6 1 1 1 6 . 5 2 1 . 2 . . 4 2 2 Treads 25 | 2 3 . . . 2 2 . 2 . . . 1 . . 2 1 . 2 . . 4 2 2 Leg 19 | . 2 . . . . . . 4 1 1 1 5 . 5 . . . . . . . . . Wheel . | . . . . . . . . . . . . . . . . . . . . . . . . Hover . | . . . . . . . . . . . . . . . . . . . . . . . . Flight . | . . . . . . . . . . . . . . . . . . . . . . . . Utility 84 | 1 1 . 5 . 2 4 2 8 4 10 3 8 3 2 2 4 6 7 1 . 5 4 2 Device 12 | . 1 . 1 . 1 1 . 1 . . . . . . . 1 . 2 . . 2 2 . Storage 11 | 1 . . 4 . . 1 . . 2 . . 1 . . 1 . . 1 . . . . . Processor 2 | . . . . . . 1 . . . . 1 . . . . . . . . . . . . Hackware 50 | . . . . . . . 1 7 2 10 . 6 3 2 1 2 6 3 . . 3 2 2 Protection 9 | . . . . . 1 1 1 . . . 2 1 . . . 1 . 1 1 . . . . Artifact . | . . . . . . . . . . . . . . . . . . . . . . . . Weapon 106 | 2 . 1 5 . 2 10 1 7 1 5 . 12 4 8 5 1 4 11 1 2 12 6 6 Energy Gun 12 | 1 . . 1 . 1 3 . 1 1 2 . 2 . . . . . . . . . . . Energy Cannon 21 | . . . . . 1 3 . 4 . 2 . 2 2 1 . . 1 . . . 2 1 2 Ballistic Gun 22 | 1 . . 1 . . . . . . . . . . . . 1 2 6 1 1 4 4 1 Ballistic Cannon 5 | . . . . . . . . . . . . 2 . 2 . . . . . . . . 1 Launcher 21 | . . 1 1 . . 4 . 1 . . . 3 . 1 3 . 1 3 . 1 2 . . Special Weapon 18 | . . . 1 . . . 1 1 . 1 . 3 2 2 1 . . 1 . . 3 1 1 Impact Weapon 1 | . . . . . . . . . . . . . . . . . . 1 . . . . . Slashing Weapon 4 | . . . 1 . . . . . . . . . . 2 1 . . . . . . . . Piercing Weapon 2 | . . . . . . . . . . . . . . . . . . . . . 1 . 1 Special Melee Weapon . | . . . . . . . . . . . . . . . . . . . . . . . . Unidentified Prototypes 7 | . . . 3 . . . . . . . . . . . 1 . . . . . . 3 . Parts Lost 65 | . . . . . . 5 . 8 2 1 2 9 1 3 . . . 3 . . 6 1 24 Power 5 | . . . . . . . . . . . . . . 1 . . . 1 . . . . 3 Propulsion 22 | . . . . . . 2 . 5 1 . 2 4 . 1 . . . . . . 1 1 5 Utility 21 | . . . . . . 1 . 1 1 1 . 2 1 . . . . 1 . . 3 . 10 Weapon 17 | . . . . . . 2 . 2 . . . 3 . 1 . . . 1 . . 2 . 6 Highest Loss Streak 22 | . . . . . . 3 . 3 1 1 2 2 1 3 . . . 3 . . 3 1 22 Average Slot Usage (%) 91 | . 99 100 92 85 88 89 91 82 92 99 94 93 97 93 95 88 88 88 89 89 91 93 81 Engine 4 | . 13 14 14 14 9 9 7 7 6 . . . . . . . . . . . . . . Core 1 | . . . . . . . . . . 7 6 6 6 1 . . . . . . . . . Reactor 1 | . . . . . . . . . . . . . . 4 6 5 5 4 5 5 4 4 6 Treads 16 | . 17 28 28 28 36 35 30 13 . . . . . . . 17 17 14 15 15 17 21 19 Leg 9 | . 9 . . . . . . 9 29 30 21 22 26 25 24 . . . . . . . . Device 4 | . 13 14 5 . 9 6 . . . . . . . . . 2 5 4 . . 6 8 7 Storage 16 | . 14 14 15 14 9 12 15 7 7 15 13 16 20 20 20 23 23 26 26 26 23 21 19 Processor 1 | . . . . . . 2 7 7 7 7 6 3 . . . . . . . . . . . Hackware 15 | . . . . . . . 6 19 23 22 20 20 23 32 31 23 23 25 26 26 22 23 16 Protection 2 | . . . . . 7 5 7 . . . 13 10 6 . . 1 . . 5 5 . . . Energy Gun 4 | . 14 14 13 14 9 6 . 1 7 2 . 2 . . . . . . . . . . . Energy Cannon 2 | . . . . . 6 8 7 5 . 5 6 2 4 1 2 . . . . . . . . Ballistic Gun 3 | . 14 1 2 14 2 . . . . . . . . . . 1 4 6 10 10 9 8 7 Launcher 1 | . . 12 11 . . 2 . . . . . . . . 3 3 . . . . . . . Special Weapon 2 | . . . . . . . 6 6 7 6 6 1 5 3 1 5 5 3 . . 1 3 2 Naked Turns . | . . . . . . . . . . . . . . . . . . . . . . . . Heaviest Build 121 | 13 16 17 98 91 107 115 121 121 102 50 61 82 82 75 74 89 91 99 93 93 110 102 118 Greatest Support 208 | 40 46 46 46 46 92 92 86 86 40 40 40 70 65 74 160 190 190 190 190 190 190 208 208 Greatest Overweight (x) 5 | 1 . . 2 1 1 1 1 5 3 1 2 3 1 1 . . . . . . . . 1 Average Overweight (x) . | . . . . 1 . 1 1 1 1 1 1 . 1 . . . . . . . . . . Largest Inventory Capacity 30 | 6 6 6 24 24 24 30 30 30 24 16 16 22 22 22 22 22 22 22 22 22 22 22 22 Average Capacity 20 | 5 6 6 15 24 24 26 30 24 23 16 16 19 22 22 22 22 22 22 22 22 22 22 21 Most Carried 25 | 4 6 6 10 11 21 25 24 24 24 16 14 18 21 22 22 22 22 22 20 18 17 22 22 Average Carried 17 | 1 5 6 7 10 16 22 23 22 22 15 13 15 19 18 18 19 21 20 18 18 13 19 20 Final Capacity 16 | . . . . . . . . . . . . . . . . . . . . . . . 16 Final Carried 10 | . . . . . . . . . . . . . . . . . . . . . . . 10 Class Distribution -------------------- 33% | Bothacker-Mutant 30% | Botlord-Mutant 17% | Hauler-Mutant 14% | Mutant 3% | Scavenger-Mutant Dominant Class ---------------- Mutant | -10/Materials Mutant | -10/Mines Mutant | -10/Exiles Hauler-Mutant | -9/Mines Hauler-Mutant | -8/Materials Hauler-Mutant | -8/Garrison Bothacker-Mutant | -7/Factory Bothacker-Mutant | -7/Garrison Bothacker-Mutant | -7/Factory Bothacker-Mutant | -7/Garrison Bothacker-Mutant | -6/Factory Scavenger-Mutant | -6/Garrison Botlord-Mutant | -6/Factory Botlord-Mutant | -6/Extension Botlord-Mutant | -6/Cetus Bothacker-Mutant | -5/Factory Botlord-Mutant | -5/Garrison Botlord-Mutant | -4/Factory Botlord-Mutant | -4/Upper Caves Botlord-Mutant | -4/Upper Caves Botlord-Mutant | -3/Research Botlord-Mutant | -2/Research Bothacker-Mutant | -1/Access Resources | -11 -10 -10 -10 -9 -8 -8 -7 -7 -7 -7 -6 -6 -6 -6 -6 -5 -5 -4 -4 -4 -3 -2 -1 ----------- Run | Scr Mat Min Exi Min Mat Gar Fac Gar Fac Gar Fac Gar Fac Ext Cet Fac Gar Fac Upp Upp Res Res Acc Matter Collected 5248 | 195 238 46 . 68 120 281 . 347 91 269 39 604 73 261 156 3 392 571 55 14 672 200 553 Remotely . | . . . . . . . . . . . . . . . . . . . . . . . . Salvage Created 6374 | . 505 43 . . 332 1332 . 454 . 91 . 977 44 51 113 58 208 520 . 58 713 25 850 Parts 320 | . 26 12 . . 10 60 . 18 . 7 . 31 2 1 4 2 6 39 . 8 31 3 60 Haulers Intercepted 1 | . . . . . 1 . . . . . . . . . . . . . . . . . . Recyclers Shooed 1 | . . . . . . . . . . . . . . 1 . . . . . . . . . Parts Field Recycled . | . . . . . . . . . . . . . . . . . . . . . . . . Retrieved Matter . | . . . . . . . . . . . . . . . . . . . . . . . . Parts Self-Destructed 11 | . . . . . . . . . . . . . . . . . . . 4 7 . . . Prevented 4 | . . . . . . . . . . . . . . . . . . . 1 3 . . . Kills | -11 -10 -10 -10 -9 -8 -8 -7 -7 -7 -7 -6 -6 -6 -6 -6 -5 -5 -4 -4 -4 -3 -2 -1 ------- Run | Scr Mat Min Exi Min Mat Gar Fac Gar Fac Gar Fac Gar Fac Ext Cet Fac Gar Fac Upp Upp Res Res Acc Combat Hostiles Destroyed 118 | . 6 6 . . 5 28 . 10 . 1 . 17 1 1 3 3 3 7 . 5 15 . 7 Melee 1 | . . . . . . . . . . . . . . . . . . . . . 1 . . Guns 37 | . 6 . . . 1 3 . 2 . 1 . . . . . 2 3 5 . . 8 . 6 Cannons 23 | . . . . . 4 5 . 5 . . . 7 1 1 . . . . . . . . . AOE 49 | . . 6 . . . 16 . 3 . . . 7 . . 2 1 . 2 . 5 6 . 1 Classes Destroyed 18 | . 5 2 . . 3 . . 3 . . . 1 . . . . . 2 . 1 1 . . Worker 9 | . 1 . . . . . . . . . . . . . . . . 3 . . 1 1 3 Builder 7 | . . . . . 1 . . . . . . . . 1 . . . 5 . . . . . Tunneler 1 | . . 1 . . . . . . . . . . . . . . . . . . . . . Hauler 1 | . . . . . 1 . . . . . . . . . . . . . . . . . . Recycler 3 | . 2 . . . . . . . . . . . . . . . . . . . . . 1 Mechanic 1 | . . . . . . . . 1 . . . . . . . . . . . . . . . Operator 1 | . 1 . . . . . . . . . . . . . . . . . . . . . . Drone 2 | . . . . . . . . . . . . . . . . . . . . 2 . . . Watcher 4 | . 1 . . . 2 . . . . . . . . . . . . . . . . . 1 Swarmer 35 | . . 6 . . . 3 . 5 . . . 3 . . 2 3 . . . 5 7 . 1 Saboteur 1 | . . . . . . . . . . . . . . . . . . . . . 1 . . Grunt 50 | . 6 . . . 4 20 . 2 . 1 . 9 . . 1 . . 2 . . 4 . 1 Brawler 3 | . . . . . . . . 1 . . . 1 . . . . . 1 . . . . . Duelist 2 | . . . . . . . . . . . . 2 . . . . . . . . . . . Sentry 15 | . . . . . 1 5 . 2 . . . 3 . . . . 3 . . . . . 1 Specialist 1 | . . . . . . . . . . . . . . . . . . 1 . . . . . Hunter 4 | . . . . . . . . . . . . . . . . . . 1 . . 3 . . Programmer 11 | . . . . . . . . 1 . 1 . . 1 1 . . . 2 . . . . 5 Best Kill Streak 8 | . 4 4 . . 3 8 . 7 . 1 . 7 1 1 3 2 1 7 . 5 7 1 5 Combat Bots Only 8 | . 2 3 . . 3 8 . 7 . 1 . 7 1 1 3 2 1 2 . 5 7 . 2 Max Kills in Single Turn 7 | . 1 2 . . 1 3 . 2 . 1 . 1 1 1 1 1 1 4 . 7 2 1 1 Gunslinging . | . . . . . . . . . . . . . . . . . . . . . . . . Exploded 5 | . . 2 . . . 3 . 2 . . . 1 . . 1 1 . 1 . 5 2 . 1 Melee 1 | . . . . . . . . . . . . . . . . . . . . . 1 . . Uniques/NPCs Destroyed . | . . . . . . . . . . . . . . . . . . . . . . . . Combat | -11 -10 -10 -10 -9 -8 -8 -7 -7 -7 -7 -6 -6 -6 -6 -6 -5 -5 -4 -4 -4 -3 -2 -1 -------- Run | Scr Mat Min Exi Min Mat Gar Fac Gar Fac Gar Fac Gar Fac Ext Cet Fac Gar Fac Upp Upp Res Res Acc Damage Taken 13537 | . 157 84 . . 354 1052 . 884 354 233 84 1586 144 676 82 140 283 1590 . 56 1513 186 4079 Core 1387 | . 64 9 . . . 69 . 81 91 18 . 191 20 94 9 28 45 155 . . 97 . 416 Absorbed by Shields 1845 | . . . . . . . . 41 . 9 . 40 . 38 43 89 200 218 . . 256 177 734 Reduced by Siege Mode 3 | . . . . . . . . . . . . . . . . . 3 . . . . . . Core Remaining (%) 83 | 100 . . . 70 . 87 . . . 72 . . . . 63 . 92 . . 86 92 100 74 Volleys Fired 581 | . 32 7 . . 54 66 1 55 9 28 2 67 14 20 10 9 38 54 . 1 42 9 63 Largest 3 | . 2 2 . . 2 2 1 2 1 2 1 2 1 1 2 1 1 2 . 1 3 3 3 Hottest 160 | . 60 70 . . 138 138 30 135 80 160 30 135 90 66 111 35 75 71 . 49 160 115 120 Shots Fired 812 | . 63 9 . . 88 105 1 58 12 32 2 75 14 20 12 9 38 75 . 1 81 19 98 Gun 385 | . 63 2 . . 34 39 . 3 6 9 . 4 . . . 3 19 57 . . 63 15 68 Cannon 219 | . . . . . 54 40 . 30 . 6 . 38 7 12 4 . 2 . . . 7 . 19 Launcher 79 | . . 7 . . . 26 . 3 . . . 21 . 1 6 . 1 4 . 1 9 . . Special 129 | . . . . . . . 1 22 6 17 2 12 7 7 2 6 16 14 . . 2 4 11 Kinetic 298 | . 31 . . . . . . . . . . 21 . 12 . 3 19 57 . . 63 15 77 Thermal 206 | . . . . . 88 50 . 26 5 9 . 4 7 . . . . . . . 7 . 10 Explosive 21 | . . 7 . . . 1 . 3 . . . 2 . . 1 . . 2 . 1 4 . . Electromagnetic 158 | . 32 2 . . . 54 . 7 1 6 . 36 . 1 9 . 3 2 . . 5 . . Robot Hit Streak 16 | . 15 1 . . 11 11 9 12 5 7 3 9 4 9 6 5 6 16 . . 11 10 12 Robot Miss Streak 4 | . 3 2 . . 4 2 . 4 2 3 . 2 1 2 2 1 2 3 . . 3 1 3 Penetration Max 2 | . . . . . . . . . . . . . . 1 . 1 . 1 . . 2 1 2 Secondary Targets 4 | . . . . . . . . . . . . . . . . . . 1 . . 2 . 1 Max Gunslinging Chain 1 | . . . . . . . . . . . . . . . . . . 1 . . 1 . 1 Shots Hit Robots 504 | . 41 1 . . 50 65 1 34 8 16 1 47 9 15 7 7 22 62 . . 47 18 53 Core Hits 283 | . 22 10 . . 16 48 . 19 1 4 . 35 1 4 10 3 5 33 . 7 38 6 21 Critical Hits 55 | . 1 . . . . . . . . . . 9 . 7 . 1 5 . . . 4 2 26 Critical Kills 21 | . . . . . . . . . . . . 4 . 1 . 1 2 . . . 2 . 11 Critical Parts Destroyed 33 | . 1 . . . . . . . . . . 5 . 6 . . 2 . . . 2 2 15 Melee Attacks 47 | . . . . . . . . . . . . . . 7 20 . . . . . 3 . 17 Impact . | . . . . . . . . . . . . . . . . . . . . . . . . Slashing 27 | . . . . . . . . . . . . . . 7 20 . . . . . . . . Piercing 20 | . . . . . . . . . . . . . . . . . . . . . 3 . 17 Sneak Attacks 1 | . . . . . . . . . . . . . . 1 . . . . . . . . . Combat Hostiles . | . . . . . . . . . . . . . . . . . . . . . . . . Follow-up Attacks . | . . . . . . . . . . . . . . . . . . . . . . . . Damage Inflicted 15257 | . 639 318 . . 1065 2626 . 803 122 125 . 1928 153 487 478 100 396 2554 . 711 1973 181 598 Guns 5641 | . 572 12 . . 463 511 . 36 122 125 . 66 . . . 100 357 1357 . . 1180 181 559 Cannons 2816 | . . . . . 575 510 . 546 . . . 628 153 190 105 . 32 . . . 38 . 39 Explosions 6432 | . 67 306 . . . 1605 . 221 . . . 1234 . 64 373 . 7 1197 . 711 647 . . Melee 298 | . . . . . . . . . . . . . . 190 . . . . . . 108 . . Ramming 70 | . . . . . 27 . . . . . . . . 43 . . . . . . . . . Kinetic 4492 | . 245 . . . . . . . . . . 284 . 190 . 100 357 1357 . . 1180 181 598 Thermal 3927 | . 67 . . . 1038 1088 . 467 122 125 . 244 153 . 55 . . 530 . . 38 . . Explosive 2637 | . . 306 . . . 146 . 221 . . . 192 . . 131 . . 484 . 711 446 . . Electromagnetic 3833 | . 327 12 . . . 1392 . 115 . . . 1208 . 64 292 . 39 183 . . 201 . . Impact . | . . . . . . . . . . . . . . . . . . . . . . . . Slashing 190 | . . . . . . . . . . . . . . 190 . . . . . . . . . Piercing 108 | . . . . . . . . . . . . . . . . . . . . . 108 . . Highest Corruption 43 | . . . . . . . . 6 6 6 . 1 1 2 2 . 1 3 3 3 7 . 43 Average Corruption 3 | . . . . . . . . 2 6 6 . 1 1 1 2 . 1 2 3 3 6 . 12 Corruption Purged . | . . . . . . . . . . . . . . . . . . . . . . . . Effects 152 | . . . . . . . . 11 28 29 . 1 3 10 3 . 2 5 7 4 23 . 26 Message Errors 47 | . . . . . . . . 2 10 11 . . 2 3 2 . 1 4 1 2 7 . 2 Matter Fused 17 | . . . . . . . . 3 3 4 . . . . . . . . 2 1 3 . 1 Heat Flow Errors 13 | . . . . . . . . 1 2 4 . . . 1 . . . 1 2 . 1 . 1 Energy Discharges 19 | . . . . . . . . . 3 . . . . 5 1 . . . 2 . 3 . 5 Parts Rejected 1 | . . . . . . . . . . . . . . . . . . . . . 1 . . Data Loss (minor) 19 | . . . . . . . . 3 4 4 . 1 1 . . . 1 . . . 2 . 3 Data Loss (major) 6 | . . . . . . . . . 2 2 . . . . . . . . . . 1 . 1 Misfires 4 | . . . . . . . . . 3 1 . . . . . . . . . . . . . Misdirections 1 | . . . . . . . . . . . . . . . . . . . . . . . 1 Targeting Errors 23 | . . . . . . . . 2 1 3 . . . 1 . . . . . 1 4 . 11 Weapon Failures 2 | . . . . . . . . . . . . . . . . . . . . . 1 . 1 Overload Shots . | . . . . . . . . . . . . . . . . . . . . . . . . Overflow Damage 479 | . 20 . . . 23 15 . 22 . . . 7 18 106 . . . 149 . 75 44 . . Projectiles 41 | . . . . . 23 . . . . . . . 18 . . . . . . . . . . Explosions 332 | . 20 . . . . 15 . 22 . . . 7 . . . . . 149 . 75 44 . . Melee 106 | . . . . . . . . . . . . . . 106 . . . . . . . . . Knockbacks 4 | . . . . . 1 . . . . . . 1 . 2 . . . . . . . . . Impact 1 | . . . . . 1 . . . . . . . . . . . . . . . . . . Kinetic 3 | . . . . . . . . . . . . 1 . 2 . . . . . . . . . Secondary . | . . . . . . . . . . . . . . . . . . . . . . . . Self-Inflicted Damage 366 | . . 64 . . . 38 . . . . . 110 . 3 . . 16 . . 43 92 . . Shots 16 | . . 3 . . . 5 . . . . . 4 . . . . 1 . . 1 2 . . Rammed 3 | . . . . . 2 . . . . . . . . 1 . . . . . . . . . Targets Rammed 6 | . . . . . 2 . . . . . . . . 4 . . . . . . . . . Kicked 3 | . . . . . . . . . . . . . . 3 . . . . . . . . . Crushed . | . . . . . . . . . . . . . . . . . . . . . . . . Highest Temperature 375 | . 45 24 . . 199 229 4 171 256 260 8 375 160 262 36 . 14 224 267 . 121 . 177 Average Temperature 72 | . 19 13 . . 103 91 4 28 69 65 8 88 52 46 15 . 8 93 131 . 26 . 26 Received Heat Transfer 1791 | . 99 . . . 216 450 . 164 . 58 18 384 9 111 25 6 42 174 . . 15 8 12 Effects 3 | . . . . . . . . . . . . 3 . . . . . . . . . . . Energy Bleed 1 | . . . . . . . . . . . . 1 . . . . . . . . . . . Interference 2 | . . . . . . . . . . . . 2 . . . . . . . . . . . Siege Activations 1 | . . . . . . . . . . . . . . . . . 1 . . . . . . Total Turns 3 | . . . . . . . . . . . . . . . . . 3 . . . . . . Longest Duration 3 | . . . . . . . . . . . . . . . . . 3 . . . . . . Robots Corrupted 8 | . . . . . . 4 . . . . . 3 . . 1 . . . . . . . . Combat Hostiles 8 | . . . . . . 4 . . . . . 3 . . 1 . . . . . . . . Parts Fried 16 | . . . . . . 7 . . . . . 8 . . . . . . . . 1 . . Impact Corruptions . | . . . . . . . . . . . . . . . . . . . . . . . . Robots Melted . | . . . . . . . . . . . . . . . . . . . . . . . . Combat Hostiles . | . . . . . . . . . . . . . . . . . . . . . . . . Parts Melted 14 | . . . . . 3 1 . 6 . . . . . . . . . . . . 1 . 3 Heat Transferred 5476 | . 100 . . . 1850 1300 . 703 250 250 . 350 148 . 100 . . 400 . . 25 . . Parts Sabotaged . | . . . . . . . . . . . . . . . . . . . . . . . . Parts Stolen . | . . . . . . . . . . . . . . . . . . . . . . . . Parts Stripped . | . . . . . . . . . . . . . . . . . . . . . . . . Power Chain Reactions 16 | . 2 . . . . 7 . . . . . 4 . . 1 . . 2 . . . . . Missiles Intercepted . | . . . . . . . . . . . . . . . . . . . . . . . . Alert | -11 -10 -10 -10 -9 -8 -8 -7 -7 -7 -7 -6 -6 -6 -6 -6 -5 -5 -4 -4 -4 -3 -2 -1 ------- Run | Scr Mat Min Exi Min Mat Gar Fac Gar Fac Gar Fac Gar Fac Ext Cet Fac Gar Fac Upp Upp Res Res Acc Peak Influence 1474 | . 206 179 . . 130 1072 566 727 434 586 326 971 543 586 992 821 1258 1474 . . 719 316 808 Average Influence 502 | . 84 46 . . 23 752 564 629 293 380 285 612 478 292 672 549 922 1089 . . 585 248 557 Maximum Alert Level 4 | . 1 . . . . 3 2 3 2 2 1 3 2 2 3 3 4 4 . . 3 1 3 Low Security (%) 22 | . . . . . . . . . . . . . . . . . . . . . . . . Level 1 20 | . . . . . . . . . . . . . . . . . . . . . . . . Level 2 31 | . . . . . . . . . . . . . . . . . . . . . . . . Level 3 19 | . . . . . . . . . . . . . . . . . . . . . . . . Level 4 5 | . . . . . . . . . . . . . . . . . . . . . . . . Level 5 . | . . . . . . . . . . . . . . . . . . . . . . . . High Security . | . . . . . . . . . . . . . . . . . . . . . . . . Max Security . | . . . . . . . . . . . . . . . . . . . . . . . . Squads Dispatched 35 | . 1 . . . 2 . . . 2 . . . 2 6 . 2 . 7 . . 7 1 5 Investigation 11 | . 1 . . . . . . . 1 . . . . 4 . . . 1 . . 4 . . Extermination 5 | . . . . . . . . . 1 . . . . . . . . 2 . . . . 2 Reinforcement 11 | . . . . . 2 . . . . . . . . 2 . 2 . 1 . . 3 1 . Assault 2 | . . . . . . . . . . . . . 1 . . . . 1 . . . . . Garrison 6 | . . . . . . . . . . . . . 1 . . . . 2 . . . . 3 Intercept . | . . . . . . . . . . . . . . . . . . . . . . . . Construction Impeded 5 | . . . . . 2 . . . . . . . . 1 . . . 1 . . . 1 . Haulers Reinforced 1 | . . . . . . . . . . . . . . . . . . . . . 1 . . Stealth | -11 -10 -10 -10 -9 -8 -8 -7 -7 -7 -7 -6 -6 -6 -6 -6 -5 -5 -4 -4 -4 -3 -2 -1 --------- Run | Scr Mat Min Exi Min Mat Gar Fac Gar Fac Gar Fac Gar Fac Ext Cet Fac Gar Fac Upp Upp Res Res Acc Distress Signals 23 | . . . . . 2 . . . 1 . . . . 4 2 1 . 2 . . 6 2 3 Communications Jammed . | . . . . . . . . . . . . . . . . . . . . . . . . Distress Signals . | . . . . . . . . . . . . . . . . . . . . . . . . Times Spotted 369 | . 13 6 . . 9 29 . 23 11 21 1 36 10 29 20 18 26 45 . 5 27 9 31 Peak Tracking Total 8 | . 3 3 . . 5 3 . 5 4 4 1 6 5 6 6 5 6 8 . 5 6 3 6 Tactical Retreats 14 | . 1 . . . 1 2 . 1 . . . 2 . 3 . . 2 . . . . . 2 Traps | -11 -10 -10 -10 -9 -8 -8 -7 -7 -7 -7 -6 -6 -6 -6 -6 -5 -5 -4 -4 -4 -3 -2 -1 ------- Run | Scr Mat Min Exi Min Mat Gar Fac Gar Fac Gar Fac Gar Fac Ext Cet Fac Gar Fac Upp Upp Res Res Acc Traps Triggered 40 | . 1 . . . . 10 . 5 1 7 . 5 1 1 . . 1 4 . . 2 2 . Indirectly . | . . . . . . . . . . . . . . . . . . . . . . . . Trap Hack Attempts . | . . . . . . . . . . . . . . . . . . . . . . . . Triggered . | . . . . . . . . . . . . . . . . . . . . . . . . Disarmed . | . . . . . . . . . . . . . . . . . . . . . . . . Reprogrammed . | . . . . . . . . . . . . . . . . . . . . . . . . Reused . | . . . . . . . . . . . . . . . . . . . . . . . . Traps Extracted . | . . . . . . . . . . . . . . . . . . . . . . . . Installed . | . . . . . . . . . . . . . . . . . . . . . . . . Triggered 7 | . . . . . . . . . . . . . . . . . . . 3 4 . . . Machines | -11 -10 -10 -10 -9 -8 -8 -7 -7 -7 -7 -6 -6 -6 -6 -6 -5 -5 -4 -4 -4 -3 -2 -1 ---------- Run | Scr Mat Min Exi Min Mat Gar Fac Gar Fac Gar Fac Gar Fac Ext Cet Fac Gar Fac Upp Upp Res Res Acc Machines Disabled 47 | . 1 1 . . . 8 . 4 . 5 . 6 1 1 2 1 4 10 . . 1 . 2 Max in Single Turn 2 | . 1 1 . . . 1 . 1 . 1 . 1 1 1 1 . 1 2 . . 1 . 1 Garrison Access 4 | . . . . . . . . . . . . . 1 . . . . 1 . . 1 1 . Garrison Relay 19 | . . . . . . 3 . 3 . 4 . 5 . . . . 4 . . . . . . Machines Sabotaged . | . . . . . . . . . . . . . . . . . . . . . . . . Garrisons Compromised . | . . . . . . . . . . . . . . . . . . . . . . . . Overloaded Fab Kills . | . . . . . . . . . . . . . . . . . . . . . . . . Fab Network Shutdowns . | . . . . . . . . . . . . . . . . . . . . . . . . Hacking | -11 -10 -10 -10 -9 -8 -8 -7 -7 -7 -7 -6 -6 -6 -6 -6 -5 -5 -4 -4 -4 -3 -2 -1 --------- Run | Scr Mat Min Exi Min Mat Gar Fac Gar Fac Gar Fac Gar Fac Ext Cet Fac Gar Fac Upp Upp Res Res Acc Machines Accessed 59 | . 7 1 1 . 7 . 4 . 7 . 2 . 4 11 3 2 . 4 1 . 1 2 2 Terminals 45 | . 7 1 . . 6 . 1 . 5 . 1 . 3 11 3 1 . 3 1 . . 1 1 Fabricators 1 | . . . . . . . 1 . . . . . . . . . . . . . . . . Repair Stations 1 | . . . . . . . 1 . . . . . . . . . . . . . . . . Recycling Units . | . . . . . . . . . . . . . . . . . . . . . . . . Scanalyzers 1 | . . . . . . . . . 1 . . . . . . . . . . . . . . Garrison Access 10 | . . . . . 1 . 1 . 1 . 1 . 1 . . 1 . 1 . . 1 1 1 Total Hacks 135 | . 18 2 8 . 16 . 8 . 14 . 4 . 11 21 7 4 . 10 1 . 1 6 4 Successful 67 | . 8 1 8 . 8 . 4 . 5 . 3 . 3 8 4 2 . 6 1 . 1 3 2 Failed 68 | . 10 1 . . 8 . 4 . 9 . 1 . 8 13 3 2 . 4 . . . 3 2 Catastrophic 13 | . 3 1 . . . . . . 4 . . . . 3 . 1 . 1 . . . . . Database Lockouts . | . . . . . . . . . . . . . . . . . . . . . . . . Manual 32 | . 6 2 1 . 5 . 1 . . . . . . 9 1 . . 1 . . 1 3 2 Terminals 105 | . 18 2 . . 15 . 5 . 11 . 2 . 10 21 7 2 . 7 1 . . 2 2 Fabricators 1 | . . . . . . . 1 . . . . . . . . . . . . . . . . Repair Stations 1 | . . . . . . . 1 . . . . . . . . . . . . . . . . Recycling Units . | . . . . . . . . . . . . . . . . . . . . . . . . Scanalyzers 2 | . . . . . . . . . 2 . . . . . . . . . . . . . . Garrison Access 18 | . . . . . 1 . 1 . 1 . 2 . 1 . . 2 . 3 . . 1 4 2 Terminal Hacks 47 | . 6 1 8 . 6 . 2 . 2 . 1 . 2 8 4 . . 3 1 . . 2 1 Record 14 | . . . 8 . . . 1 . . . . . . . 4 . . . 1 . . . . Robot Analysis 1 | . 1 . . . . . . . . . . . . . . . . . . . . . . Prototype ID Bank 4 | . . . . . 2 . . . . . 1 . . 1 . . . . . . . . . Open Door 4 | . . . . . . . . . . . . . . 4 . . . . . . . . . Level Access Points 2 | . . . . . . . . . . . . . . . . . . . . . . 1 1 Branch Access Points 1 | . 1 . . . . . . . . . . . . . . . . . . . . . . Emergency Access Points 1 | . . . . . . . 1 . . . . . . . . . . . . . . . . Alert Level 3 | . 2 . . . 1 . . . . . . . . . . . . . . . . . . Unreport Threat 1 | . . . . . . . . . . . . . . . . . . 1 . . . . . Locate Traps 7 | . 2 . . . 1 . . . . . . . 1 1 . . . 2 . . . . . Recall Investigation 2 | . . . . . . . . . 1 . . . . 1 . . . . . . . . . Zone Layout 7 | . . 1 . . 2 . . . 1 . . . 1 1 . . . . . . . 1 . Fabricator Hacks 1 | . . . . . . . 1 . . . . . . . . . . . . . . . . Network Status 1 | . . . . . . . 1 . . . . . . . . . . . . . . . . Repair Station Hacks . | . . . . . . . . . . . . . . . . . . . . . . . . Recycling Unit Hacks . | . . . . . . . . . . . . . . . . . . . . . . . . Scanalyzer 2 | . . . . . . . . . 2 . . . . . . . . . . . . . . Insert Component 1 | . . . . . . . . . 1 . . . . . . . . . . . . . . Analyze 1 | . . . . . . . . . 1 . . . . . . . . . . . . . . Garrison Access Hacks 11 | . . . . . 1 . 1 . 1 . 2 . 1 . . 2 . 2 . . . 1 . Unlock Access 5 | . . . . . 1 . 1 . 1 . 1 . . . . 1 . . . . . . . Seal Access 3 | . . . . . . . . . . . . . 1 . . . . 1 . . . 1 . Coupler Status 3 | . . . . . . . . . . . 1 . . . . 1 . 1 . . . . . Unauthorized Hacks 16 | . 4 . . . 2 . . . . . . . . . . . . 2 . . 2 3 3 Terminals 3 | . 2 . . . 1 . . . . . . . . . . . . . . . . . . Track 2 | . 1 . . . 1 . . . . . . . . . . . . . . . . . . Botnet 1 | . 1 . . . . . . . . . . . . . . . . . . . . . . Fabricators . | . . . . . . . . . . . . . . . . . . . . . . . . Repair Stations . | . . . . . . . . . . . . . . . . . . . . . . . . Recycling Units . | . . . . . . . . . . . . . . . . . . . . . . . . Scanalyzers . | . . . . . . . . . . . . . . . . . . . . . . . . Garrison Access 3 | . . . . . . . . . . . . . . . . . . 1 . . 1 . 1 Reprogram 2 | . . . . . . . . . . . . . . . . . . 1 . . . . 1 Eject 1 | . . . . . . . . . . . . . . . . . . . . . 1 . . Data Cores Recovered . | . . . . . . . . . . . . . . . . . . . . . . . . Used . | . . . . . . . . . . . . . . . . . . . . . . . . Hacking Detections 47 | . 6 1 . . 7 . 2 . 5 . 1 . 3 8 4 2 . 4 . . . 2 2 Full Trace Events 5 | . 2 . . . . . . . 1 . . . . 1 . . . 1 . . . . . Feedback Events . | . . . . . . . . . . . . . . . . . . . . . . . . Feedback Blocked . | . . . . . . . . . . . . . . . . . . . . . . . . Robot Schematics Acquired . | . . . . . . . . . . . . . . . . . . . . . . . . Robots Built . | . . . . . . . . . . . . . . . . . . . . . . . . Matter . | . . . . . . . . . . . . . . . . . . . . . . . . Time . | . . . . . . . . . . . . . . . . . . . . . . . . Total Robot Build Rating . | . . . . . . . . . . . . . . . . . . . . . . . . Part Schematics Acquired 1 | . . . . . . . . . 1 . . . . . . . . . . . . . . Parts Built . | . . . . . . . . . . . . . . . . . . . . . . . . Matter . | . . . . . . . . . . . . . . . . . . . . . . . . Time . | . . . . . . . . . . . . . . . . . . . . . . . . Total Part Build Rating . | . . . . . . . . . . . . . . . . . . . . . . . . Parts Repaired . | . . . . . . . . . . . . . . . . . . . . . . . . Time . | . . . . . . . . . . . . . . . . . . . . . . . . Parts Recycled . | . . . . . . . . . . . . . . . . . . . . . . . . Recycled Matter . | . . . . . . . . . . . . . . . . . . . . . . . . Retrieved Matter . | . . . . . . . . . . . . . . . . . . . . . . . . Retrieved Components . | . . . . . . . . . . . . . . . . . . . . . . . . Parts Scanalyzed 1 | . . . . . . . . . 1 . . . . . . . . . . . . . . Part Schematics Acquired 1 | . . . . . . . . . 1 . . . . . . . . . . . . . . Parts Damaged . | . . . . . . . . . . . . . . . . . . . . . . . . Bothacking | -11 -10 -10 -10 -9 -8 -8 -7 -7 -7 -7 -6 -6 -6 -6 -6 -5 -5 -4 -4 -4 -3 -2 -1 ------------ Run | Scr Mat Min Exi Min Mat Gar Fac Gar Fac Gar Fac Gar Fac Ext Cet Fac Gar Fac Upp Upp Res Res Acc Used RIF Installer 5 | . . . . . . 1 . 1 . 1 . 1 . . . . 1 . . . . . . Coupler Efficiency 1 | . . . . . . . . . . . . . . . . . 1 . . . . . . Structural Interface 1 | . . . . . . . . 1 . . . . . . . . . . . . . . . Program Shield 1 | . . . . . . . . . . 1 . . . . . . . . . . . . . Autoassimilate 1 | . . . . . . . . . . . . 1 . . . . . . . . . . . Robots Hacked 96 | . . . . . . . 1 12 3 13 1 5 5 7 2 4 13 15 . . 2 7 6 Non-combat 7 | . . . . . . . 1 . . . . . 2 . . . . 1 . . . 1 2 Combat 89 | . . . . . . . . 12 3 13 1 5 3 7 2 4 13 14 . . 2 6 4 Autoassimilated 13 | . . . . . . . . . . . . . 1 2 . . 3 3 . . . 4 . Robot Hacks Applied 86 | . . . . . . . 1 12 4 13 1 5 4 5 2 4 10 13 . . 2 4 6 parse_system 2 | . . . . . . . . . . . . . 1 . 1 . . . . . . . . ignore_parts 1 | . . . . . . . . . . . . . . . . . . 1 . . . . . map_route 1 | . . . . . . . . . . . . . . . . . . . . . . 1 . relay_feed 1 | . . . . . . . . . . . . . . . . . . . . . . . 1 find_garrison 1 | . . . . . . . . . 1 . . . . . . . . . . . . . . link_fov 1 | . . . . . . . . . . . . . . . . . . . . . . . 1 scatter_targeting 1 | . . . . . . . . . . . . . . . . . 1 . . . . . . spike_heat 2 | . . . . . . . . 2 . . . . . . . . . . . . . . . overload_power 2 | . . . . . . . . . 1 1 . . . . . . . . . . . . . amplify_resonance 6 | . . . . . . . . 1 . . . . 1 . . 2 1 . . . . . 1 disable_weapons 3 | . . . . . . . . . 1 . . . . . . . . 1 . . . . 1 reboot_system 4 | . . . . . . . . . . 2 . . . . . . . 2 . . . . . overwrite_iff 1 | . . . . . . . . . . . . . . . . . . 1 . . . . . streamctrl_low 1 | . . . . . . . . . . . . . . . . . . 1 . . . . . streamctrl_high 7 | . . . . . . . . 3 . . . 2 . . . . 1 . . . . . 1 formatsys_low 1 | . . . . . . . 1 . . . . . . . . . . . . . . . . formatsys_high 51 | . . . . . . . . 6 1 10 1 3 2 5 1 2 7 7 . . 2 3 1 Relay Couplers Released 89 | . . . . . . 12 . 13 . 16 . 19 . . . . 15 . . . 11 . 3 Ejected 3 | . . . . . . . . . . . . . . . . . . . . . 3 . . Machine Destruction 75 | . . . . . . 12 . 13 . 16 . 19 . . . . 15 . . . . . . Programmers 11 | . . . . . . . . . . . . . . . . . . . . . 8 . 3 Attached 46 | . . . . . . . 1 7 1 10 . 6 3 2 1 2 6 3 . . 3 1 . Robots Rewired 7 | . . . . . . . . . . . . . . 7 . . . . . . . . . Allies Hacked . | . . . . . . . . . . . . . . . . . . . . . . . . Hacks Repelled 2 | . . . . . . . . . . . . . . . . . . . . . . . 2 Allies | -11 -10 -10 -10 -9 -8 -8 -7 -7 -7 -7 -6 -6 -6 -6 -6 -5 -5 -4 -4 -4 -3 -2 -1 -------- Run | Scr Mat Min Exi Min Mat Gar Fac Gar Fac Gar Fac Gar Fac Ext Cet Fac Gar Fac Upp Upp Res Res Acc Total Allies 104 | . . . . . . . 1 9 1 10 1 9 4 22 6 2 11 16 . . 2 7 3 Largest Group 16 | . . . . . . . 1 3 3 5 5 6 4 16 12 8 6 9 . . 2 7 7 Highest-Rated Group 821 | . . . . . . . 20 53 64 112 112 290 149 639 821 530 286 371 . . 128 421 421 Highest-Rated Ally 156 | . . . . . . . 20 32 32 32 32 81 81 156 156 150 94 94 . . 64 64 64 Total Orders 17 | . . . 1 . . . . . . . . 10 . . . . 4 1 . 1 . . . STAY 3 | . . . . . . . . . . . . 1 . . . . 2 . . . . . . GOTO 5 | . . . . . . . . . . . . 5 . . . . . . . . . . . FOLLOW 6 | . . . . . . . . . . . . 4 . . . . 2 . . . . . . DROP 1 | . . . . . . . . . . . . . . . . . . 1 . . . . . EXPLORE 1 | . . . . . . . . . . . . . . . . . . . . 1 . . . RETURN 1 | . . . 1 . . . . . . . . . . . . . . . . . . . . Ally Attacks 881 | . . . . . . . . 24 20 45 2 99 16 124 114 26 91 185 . . 1 30 104 Total Damage 23529 | . . . . . . . . 489 505 897 39 2985 728 3309 2697 774 2706 4465 . . 56 624 3255 Kills 151 | . . . . . . . . 4 7 10 . 14 7 18 20 5 14 27 . . . 6 19 Allies Corrupted 4 | . . . . . . . . . . . . . . . . . . 1 . . . . 3 Allies Melted . | . . . . . . . . . . . . . . . . . . . . . . . . Field Lobotomies 5 | . . . . . . . . . . . . 4 1 . . . . . . . . . . Intel | -11 -10 -10 -10 -9 -8 -8 -7 -7 -7 -7 -6 -6 -6 -6 -6 -5 -5 -4 -4 -4 -3 -2 -1 ------- Run | Scr Mat Min Exi Min Mat Gar Fac Gar Fac Gar Fac Gar Fac Ext Cet Fac Gar Fac Upp Upp Res Res Acc Robot Analysis Total 1 | . 1 . . . . . . . . . . . . . . . . . . . . . . Derelict Logs Recovered 6 | . . 2 . 2 . . . . . . . . . . . . . . 2 . . . . Drone Launches 4 | . . . 1 . . . . . . . . . . . . . . . 3 . . . . Drone Recoveries 1 | . . . 1 . . . . . . . . . . . . . . . . . . . . Exploration | -11 -10 -10 -10 -9 -8 -8 -7 -7 -7 -7 -6 -6 -6 -6 -6 -5 -5 -4 -4 -4 -3 -2 -1 ------------- Run | Scr Mat Min Exi Min Mat Gar Fac Gar Fac Gar Fac Gar Fac Ext Cet Fac Gar Fac Upp Upp Res Res Acc Turns Passed 18859 | 89 718 1032 888 203 1166 1837 314 1005 1014 1015 287 1448 686 981 432 385 983 1467 520 62 918 600 809 Spaces Moved 10060 | 50 391 620 510 113 523 861 171 446 537 578 160 785 431 607 234 204 511 767 322 35 470 353 381 Core 3 | 3 . . . . . . . . . . . . . . . . . . . . . . . Treads 6495 | 47 277 620 510 113 523 861 171 311 . . . 4 . . 15 204 511 767 322 35 470 353 381 Legs 3562 | . 114 . . . . . . 135 537 578 160 781 431 607 219 . . . . . . . . Wheels . | . . . . . . . . . . . . . . . . . . . . . . . . Hover . | . . . . . . . . . . . . . . . . . . . . . . . . Flight . | . . . . . . . . . . . . . . . . . . . . . . . . Fastest Speed 50 | 50 120 160 160 180 160 180 180 180 120 150 150 120 150 120 120 160 160 160 160 160 156 151 145 Average Speed 159 | 154 148 160 168 180 175 180 180 190 178 150 171 143 150 124 122 160 160 160 160 160 156 153 151 Slowest Speed 260 | 160 160 160 200 180 180 180 180 260 210 150 180 210 150 150 160 160 160 160 160 160 160 154 165 Overloaded Moves . | . . . . . . . . . . . . . . . . . . . . . . . . Propulsion Burnouts . | . . . . . . . . . . . . . . . . . . . . . . . . Robots Hopped 4 | . . . . . . . . . . . . . . . . . . 4 . . . . . Cave-ins Triggered 6 | . . . . . . . . . . . . . . . . . . . . . 1 . 5 Exploration Rate (%) 46 | 5 79 99 72 54 31 82 5 59 22 92 4 98 14 73 81 7 98 23 61 10 20 9 12 Regions Visited 23 Branch Regions 7 Pre-discovered Areas 2 | . . 1 . 1 . . . . . . . . . . . . . . . . . . . Known Exits Taken 9 | . 1 . . . 1 . 1 . 1 . 1 . . . . 1 . . 1 . 1 1 . Unknown Exits Taken 9 | 1 . 1 1 1 . . . . . . . . 1 1 1 . . 1 . 1 . . . Scrap Searched 5 | . . 1 . 2 . . . . . . . . . . . . . . 2 . . . . Spaces Dug 91 | . . . . . 18 . . 5 . . . . 1 1 2 . . . . 28 8 . 28 Terrain Destroyed 314 | . 17 51 . . 30 22 . 12 . . . 25 2 1 16 . . 36 . 28 46 . 28 Melee 20 | . . . . . . . . . . . . . . 1 2 . . . . . . . 17 Projectile 60 | . . . . . 30 . . . . . . 1 2 . . . . 8 . . 8 . 11 AOE 234 | . 17 51 . . . 22 . 12 . . . 24 . . 14 . . 28 . 28 38 . . Actions | -11 -10 -10 -10 -9 -8 -8 -7 -7 -7 -7 -6 -6 -6 -6 -6 -5 -5 -4 -4 -4 -3 -2 -1 --------- Run | Scr Mat Min Exi Min Mat Gar Fac Gar Fac Gar Fac Gar Fac Ext Cet Fac Gar Fac Upp Upp Res Res Acc Total 12000 | 59 469 651 542 113 678 1042 176 548 584 698 170 1023 456 800 332 254 649 931 327 39 570 399 490 Wait 613 | . 20 24 1 . 83 57 . . 5 21 2 103 2 45 40 30 64 75 . 2 22 2 15 Move 10024 | 49 390 619 509 112 522 859 171 444 537 576 160 784 430 606 233 204 509 759 321 34 469 352 375 Hop 3 | . . . . . . . . . . . . . . . . . . 3 . . . . . Pick Up 161 | 4 8 . 12 1 11 16 1 4 17 9 2 12 3 1 8 4 14 9 1 . 10 12 2 Fast Attach 64 | 6 7 . 8 . 1 2 . 8 2 3 . 8 . 1 1 . 2 7 . . 3 5 . Attach 77 | . . . . . 3 4 2 5 1 2 3 6 2 9 5 2 1 5 3 . 10 4 10 Detach 16 | . . . 1 . . . . 1 . . . 2 . 6 3 . . 2 . . . 1 . Swap 106 | . 1 1 2 . 2 11 1 9 4 11 1 12 5 6 3 5 7 9 . 2 8 3 3 Drop 86 | . 11 . 9 . . 9 . 5 4 5 . 4 . . 9 . 13 6 1 . 2 8 . Fire 581 | . 32 7 . . 54 66 1 55 9 28 2 67 14 20 10 9 38 54 . 1 42 9 63 Melee 47 | . . . . . . . . . . . . . . 7 20 . . . . . 3 . 17 Ram . | . . . . . . . . . . . . . . . . . . . . . . . . Kick 4 | . . . . . . . . . . . . . . 4 . . . . . . . . . Crush 2 | . . . . . 2 . . . . . . . . . . . . . . . . . . Escape Stasis 103 | . . . . . . 18 . 13 5 39 . 23 . . . . . . . . . . 5 Rewire 112 | . . . . . . . . 4 . 4 . 2 . 95 . . 1 2 . . 1 3 . Trap . | . . . . . . . . . . . . . . . . . . . . . . . . Miscellaneous 1 | . . . . . . . . . . . . . . . . . . . 1 . . . . Route ------- -11/Scrapyard -10/Materials (discovered 2 exits: [*Mat] / *Min) -10/Mines (discovered 3 exits: [*Mat x2] / *Exi) -10/Exiles -9/Mines -8/Materials (discovered 2 exits: [*Sto] / Gar) -8/Garrison (discovered 3 exits: *Fac x3) -7/Factory -7/Garrison (discovered 2 exits: *Fac x2) -7/Factory (discovered 2 exits: [*Low] / Gar) -7/Garrison (discovered 3 exits: *Fac x3) -6/Factory (discovered 2 exits: *Low / Gar) -6/Garrison (discovered 3 exits: *Fac x3) -6/Factory -6/Extension (discovered 2 exits: *Fac / *Cet) -6/Cetus (discovered 2 exits: *Fac / [*Arc]) -5/Factory -5/Garrison (discovered 3 exits: *Fac x3) -4/Factory -4/Upper Caves -4/Upper Caves -3/Research (discovered 3 exits: *Res x2 / Tes) -2/Research (discovered 3 exits: *Acc x3) -1/Access To Epsilon Eridani History --------- Turn | Location | Event 6 | -11/Scrapyard | Discovered new exit (range 16) 90 | -11/Scrapyard | Entered Materials 315 | -10/Materials | Build established: Mutant 495 | -10/Materials | Discovered new exit (range 4) 627 | -10/Materials | Identified exit to Mines 808 | -10/Materials | Entered Mines 814 | -10/Mines | Met a Derelict bent on vengeance 933 | -10/Mines | Discovered new exit (range 12) 1024 | -10/Mines | Learned location of Zion (-7) 1145 | -10/Mines | Discovered new exit (range 9) 1588 | -10/Mines | Learned 2 Materials zone layouts 1834 | -10/Mines | Deemed a non-threat by the Exiles lab entrance 1834 | -10/Mines | Discovered new exit (range 5) 1840 | -10/Mines | Entered Exiles 1879 | -10/Exiles | Met 8R-AWN 1906 | -10/Exiles | Met EX-HEX 1967 | -10/Exiles | Met EX-DEC 2108 | -10/Exiles | Discovered new exit (range 14) 2412 | -10/Exiles | Met EX-BIN 2443 | -10/Exiles | Aligned with FarCom system 2445 | -10/Exiles | Given EX-Vault access code 2486 | -10/Exiles | Opened EX-Vault 2503 | -10/Exiles | Found Prototype Special Weapon 2503 | -10/Exiles | Identified Field Lobotomy Kit 2513 | -10/Exiles | Found Prototype Slashing Weapon 2513 | -10/Exiles | Identified Longsword +1 2519 | -10/Exiles | Found Prototype Device 2519 | -10/Exiles | Identified Supersonic Drone Bay 2590 | -10/Exiles | Warned to stay clear of 0b10 Research branches 2627 | -10/Exiles | Build established: Hauler-Mutant 2728 | -10/Exiles | Left Exiles lab with Field Lobotomy Kit 2728 | -10/Exiles | Entered Mines 2799 | -9/Mines | Learned location of Storage (-8) 2853 | -9/Mines | Learned Materials terminal intel 2860 | -9/Mines | Received a Rocket Launcher from a helpful Derelict 2882 | -9/Mines | Discovered new exit (range 14) 2931 | -9/Mines | Entered Materials 2931 | -8/Materials | Evolved 4 slots: Propulsion x2, Utility x2 2933 | -8/Materials | Loaded intel: 12 terminal locations 3073 | -8/Materials | Identified exit to Garrison 3305 | -8/Materials | Discovered new exit (range 6) 4097 | -8/Materials | Entered Garrison 4336 | -8/Garrison | Lost 3 parts (1n1u1w) 4482 | -8/Garrison | Triggered checkpoint 4543 | -8/Garrison | Garrison Relay disabled 4652 | -8/Garrison | Triggered checkpoint 4687 | -8/Garrison | Triggered checkpoint 4710 | -8/Garrison | Triggered checkpoint 4729 | -8/Garrison | Triggered checkpoint 4761 | -8/Garrison | Destroyed 8 combat bots 4807 | -8/Garrison | Discovered new exit (range 14) 4866 | -8/Garrison | Triggered checkpoint 4897 | -8/Garrison | Garrison Relay disabled 5141 | -8/Garrison | Discovered new exit (range 15) 5180 | -8/Garrison | Installed Relay Interface Framework 5250 | -8/Garrison | Triggered checkpoint 5284 | -8/Garrison | Garrison Relay disabled 5379 | -8/Garrison | Identified exit to Factory 5472 | -8/Garrison | Build established: Bothacker-Mutant 5680 | -8/Garrison | Discovered exit to Factory (range 8) 5934 | -8/Garrison | Entered Factory 5934 | -7/Factory | Evolved 2 slots: Utility x2 6248 | -7/Factory | Identified exit to Garrison 6248 | -7/Factory | Entered Garrison 6248 | -7/Garrison | Accompanied by 1 ally 6272 | -7/Garrison | Triggered checkpoint 6300 | -7/Garrison | Garrison Relay disabled 6430 | -7/Garrison | Triggered checkpoint 6443 | -7/Garrison | Triggered checkpoint 6450 | -7/Garrison | Triggered checkpoint 6487 | -7/Garrison | Triggered checkpoint 6494 | -7/Garrison | Destroyed 7 combat bots 6604 | -7/Garrison | Triggered checkpoint 6622 | -7/Garrison | Garrison Relay disabled 6728 | -7/Garrison | Discovered new exit (range 10) 6748 | -7/Garrison | Identified exit to Factory 6760 | -7/Garrison | Expanded RIF knowledge: Structural Interface 7015 | -7/Garrison | Lost 3 parts (1n1u1w) 7034 | -7/Garrison | Triggered checkpoint 7083 | -7/Garrison | Garrison Relay disabled 7147 | -7/Garrison | Discovered exit to Factory (range 13) 7253 | -7/Garrison | Entered Factory 7253 | -7/Factory | Accompanied by 2 allies 8001 | -7/Factory | Discovered new exit (range 12) 8267 | -7/Factory | Identified exit to Garrison 8267 | -7/Factory | Entered Garrison 8267 | -7/Garrison | Accompanied by 1 ally 8312 | -7/Garrison | Triggered checkpoint 8343 | -7/Garrison | Garrison Relay disabled 8419 | -7/Garrison | Triggered checkpoint 8492 | -7/Garrison | Triggered checkpoint 8586 | -7/Garrison | Triggered checkpoint 8628 | -7/Garrison | Garrison Relay disabled 8675 | -7/Garrison | Discovered new exit (range 13) 8695 | -7/Garrison | Identified exit to Factory 8802 | -7/Garrison | Triggered checkpoint 8844 | -7/Garrison | Triggered checkpoint 8867 | -7/Garrison | Garrison Relay disabled 8947 | -7/Garrison | Discovered exit to Factory (range 9) 8968 | -7/Garrison | Expanded RIF knowledge: Program Shield 9071 | -7/Garrison | Discovered exit to Factory (range 10) 9122 | -7/Garrison | Triggered checkpoint 9150 | -7/Garrison | Garrison Relay disabled 9282 | -7/Garrison | Entered Factory 9282 | -6/Factory | Accompanied by 5 allies 9282 | -6/Factory | Evolved 2 slots: Utility x2 9348 | -6/Factory | Discovered new exit (range 16) 9375 | -6/Factory | Identified exit to Lower Caves 9569 | -6/Factory | Identified exit to Garrison 9569 | -6/Factory | Entered Garrison 9569 | -6/Garrison | Accompanied by 3 allies 9596 | -6/Garrison | Triggered checkpoint 9643 | -6/Garrison | Garrison Relay disabled 9705 | -6/Garrison | Garrison Relay disabled 9783 | -6/Garrison | Triggered checkpoint 9806 | -6/Garrison | Assimilated L-41 Fighter with FLK Orb 9854 | -6/Garrison | Spotted B-75 Beast 9854 | -6/Garrison | Spotted B-75 Beast 9860 | -6/Garrison | Assimilated B-75 Beast with FLK Orb 9863 | -6/Garrison | Assimilated B-75 Beast with FLK Orb 10044 | -6/Garrison | Spotted B-75 Beast 10052 | -6/Garrison | Triggered checkpoint 10053 | -6/Garrison | Assimilated B-75 Beast with FLK Orb 10064 | -6/Garrison | Triggered checkpoint 10121 | -6/Garrison | Build established: Mutant 10171 | -6/Garrison | Triggered checkpoint 10295 | -6/Garrison | Discovered new exit (range 9) 10304 | -6/Garrison | Identified exit to Factory 10313 | -6/Garrison | Expanded RIF knowledge: Autoassimilate 10368 | -6/Garrison | Triggered checkpoint 10533 | -6/Garrison | Triggered checkpoint 10546 | -6/Garrison | Build established: Hauler-Mutant 10583 | -6/Garrison | Destroyed 7 combat bots 10609 | -6/Garrison | Discovered exit to Factory (range 11) 10678 | -6/Garrison | Triggered checkpoint 10736 | -6/Garrison | Garrison Relay disabled 10874 | -6/Garrison | Build established: Scavenger-Mutant 10946 | -6/Garrison | Garrison Relay disabled 10997 | -6/Garrison | Discovered exit to Factory (range 12) 11017 | -6/Garrison | Entered Factory 11358 | -6/Factory | Spotted B-75 Beast 11361 | -6/Factory | Assimilated B-75 Beast with FLK Orb 11367 | -6/Factory | First assault squad dispatched 11404 | -6/Factory | Build established: Botlord-Mutant 11680 | -6/Factory | Garrison activated, responded to threat 11680 | -6/Factory | Discovered new exit (range 13) 11703 | -6/Factory | Entered Extension 11703 | -6/Extension | Accompanied by 4 allies 11846 | -6/Extension | Spotted B-75 Beast 11862 | -6/Extension | Spotted B-75 Beast 11871 | -6/Extension | Allies destroyed B-75 Beast 11927 | -6/Extension | Lost 3 parts (1p1n1w) 11968 | -6/Extension | Rescued a captive Derelict 12061 | -6/Extension | Rescued A7 12082 | -6/Extension | Rescued a captive Derelict 12083 | -6/Extension | Rescued a captive Derelict 12186 | -6/Extension | Rescued a captive Derelict 12186 | -6/Extension | Rescued a captive Derelict 12405 | -6/Extension | Rescued a captive Derelict 12413 | -6/Extension | Rescued a captive Derelict 12655 | -6/Extension | Discovered new exit (range 16) 12656 | -6/Extension | Discovered new exit (range 15) 12684 | -6/Extension | Entered Cetus 12684 | -6/Cetus | Accompanied by 9 allies 12689 | -6/Cetus | Acquired a Cetus Manufacturing Module code from A7 12702 | -6/Cetus | Spotted Cetus Guard 12702 | -6/Cetus | Spotted Cetus Guard 12703 | -6/Cetus | Spotted Cetus Guard 12709 | -6/Cetus | Spotted Cetus Guard 12709 | -6/Cetus | Allies destroyed Cetus Guard 12719 | -6/Cetus | Allies destroyed Cetus Guard 12723 | -6/Cetus | Allies destroyed Cetus Guard 12726 | -6/Cetus | Allies destroyed Cetus Guard 12759 | -6/Cetus | Started Cetus Manufacturing Module 12784 | -6/Cetus | Manufactured an Enhanced Grunt 12809 | -6/Cetus | Manufactured an Enhanced Grunt 12834 | -6/Cetus | Manufactured an Enhanced Grunt 12859 | -6/Cetus | Manufactured an Enhanced Grunt 12884 | -6/Cetus | Manufactured an Enhanced Grunt 12908 | -6/Cetus | Escorted A7 to Cetus Mainframe 12964 | -6/Cetus | Found a strange terminal 13016 | -6/Cetus | Discovered new exit (range 16) 13046 | -6/Cetus | Spotted Cetus Guard 13046 | -6/Cetus | Spotted Cetus Guard 13049 | -6/Cetus | Spotted Cetus Guard 13049 | -6/Cetus | Spotted Cetus Guard 13059 | -6/Cetus | Allies destroyed Cetus Guard 13063 | -6/Cetus | Allies destroyed Cetus Guard 13064 | -6/Cetus | Allies destroyed Cetus Guard 13065 | -6/Cetus | Allies destroyed Cetus Guard 13071 | -6/Cetus | Discovered new exit (range 15) 13080 | -6/Cetus | Met Revision 17 13116 | -6/Cetus | Entered Factory 13116 | -5/Factory | Accompanied by 7 allies 13116 | -5/Factory | Evolved 2 slots: Propulsion x1, Utility x1 13121 | -5/Factory | Received a hacking code to weaken MAIN.C 13306 | -5/Factory | Build established: Bothacker-Mutant 13483 | -5/Factory | Identified exit to Garrison 13501 | -5/Factory | Entered Garrison 13501 | -5/Garrison | Accompanied by 3 allies 13509 | -5/Garrison | Expanded RIF knowledge: Coupler Efficiency 13546 | -5/Garrison | Triggered checkpoint 13570 | -5/Garrison | Garrison Relay disabled 13703 | -5/Garrison | Spotted B-75 Beast 13705 | -5/Garrison | Triggered checkpoint 13714 | -5/Garrison | Triggered checkpoint 13728 | -5/Garrison | Allies destroyed B-75 Beast 13830 | -5/Garrison | Triggered checkpoint 13854 | -5/Garrison | Garrison Relay disabled 13906 | -5/Garrison | Discovered new exit (range 14) 14074 | -5/Garrison | Triggered checkpoint 14146 | -5/Garrison | Discovered new exit (range 12) 14148 | -5/Garrison | Build established: Botlord-Mutant 14212 | -5/Garrison | Triggered checkpoint 14237 | -5/Garrison | Garrison Relay disabled 14328 | -5/Garrison | Triggered checkpoint 14380 | -5/Garrison | Triggered checkpoint 14411 | -5/Garrison | Garrison Relay disabled 14460 | -5/Garrison | Discovered new exit (range 14) 14484 | -5/Garrison | Entered Factory 14484 | -4/Factory | Accompanied by 6 allies 14484 | -4/Factory | Evolved 2 slots: Utility x2 14819 | -4/Factory | P-70 Sage assimilated allied Disruptor 6a 14984 | -4/Factory | First assault squad dispatched 15046 | -4/Factory | Garrison activated, responded to threat 15498 | -4/Factory | Allied Derelicts emerged from ambush trap array 15726 | -4/Factory | Discovered new exit (range 16) 15951 | -4/Factory | Entered Upper Caves 15965 | -4/Upper Caves | Lost 3 parts (1p1u1w) 16266 | -4/Upper Caves | Identified exit to Upper Caves 16314 | -4/Upper Caves | Learned 8 Research zone layouts 16471 | -4/Upper Caves | Entered another Upper Caves area 16471 | -4/Upper Caves | Accompanied by 3 allies 16520 | -4/Upper Caves | Discovered new exit (range 7) 16533 | -4/Upper Caves | Entered Research 16533 | -3/Research | Evolved 2 slots: Utility x1, Weapon x1 16534 | -3/Research | Identified exit to Research 16534 | -3/Research | Identified exit to Testing 16648 | -3/Research | Destroyed 7 combat bots 16678 | -3/Research | Lost 3 parts (1n2w) 16733 | -3/Research | Revision forces began assault on 0b10 16742 | -3/Research | Met up with Revision 17++ 16894 | -3/Research | Crushed by falling debris 17233 | -3/Research | Research terminal network offline 17451 | -3/Research | Entered another Research area 17451 | -2/Research | Accompanied by 1 ally 17451 | -2/Research | Evolved 2 slots: Propulsion x1, Utility x1 17700 | -2/Research | Found Prototype Hackware 17700 | -2/Research | Identified Exp. System Shield 17776 | -2/Research | Identified exit to Access 18051 | -2/Research | Entered Access 18051 | -1/Access | Accompanied by 7 allies 18051 | -1/Access | Evolved 2 slots: Power x1, Utility x1 18276 | -1/Access | Garrison activated, responded to threat 18522 | -1/Access | Identified exit to Surface 18580 | -1/Access | Build established: Bothacker-Mutant 18766 | -1/Access | Crushed by falling debris 18767 | -1/Access | System corruption reached 10% 18771 | -1/Access | Crushed by falling debris 18781 | -1/Access | Crushed by falling debris 18782 | -1/Access | System corruption reached 30% 18784 | -1/Access | Crushed by falling debris 18792 | -1/Access | Crushed by falling debris 18812 | -1/Access | Spotted B-99 Colossus 18812 | -1/Access | Spotted B-99 Colossus 18860 | *** | Escaped! Last Messages --------------- 18843_ Penetrated by Slug. 18843_ Slug penetrates Sealed Heavy Doors. 18843_ Slug penetrates Sealed Barrier. 18844_ R-10 Processor collects Imp. Remote Datajack. 18845_ System corrupted: Neutron Cannon targeting data glitched. 18845_ Main Access Shell breached. 18847_ Penetrated by Slug. 18847_ Slug penetrates Sealed Barrier. 18848_ B-99 Colossus exits siege mode. 18850_ Slug penetrates Sealed Heavy Doors. 18850_ Neutron Cannon destroyed. 18850_ Penetrated by Slug. 18850_ Slug penetrates Sealed Heavy Doors. 18850_ P-80 Master resets B-99 Colossus, system corruption cleaned. 18854_ Slug penetrates Sealed Heavy Doors. 18854_ Penetrated by Slug. 18854_ Relay Coupler [Grunt] destroyed. 18854_ Penetrated by Slug. 18854_ Slug penetrates Sealed Barrier. 18857_ System corrupted: Heat flow error (+214). Map ----- +----------------------------------------------------+ | # # #???????????????????????????????????? | | + # #???????????????????????????????????? | | # # #???????????????????????????????????? | | ########### ##??????????????????????????????????? | | ?????????? ???????????????????????????????????? | | ??????????# ???????????o???????????????????????? | | ??????????# #?????#####?????????????????????????? | | ??????????# #????? #?????????????????????????? | | ??????????# #???? #?????????????????????????? | | ??????????# #???! #?????????????????????????? | | +########## #?? #?????????????????????????? | | #? #?????????????????????????? | | # #?????????????????????????? | | #######+### # #?????????????????????????? | | ????? # + #?????????????????????????? | | ??? # |########????????????????????????????? | | ? " #p!#????????????????????????????????? ?? | | # """ #!%#???????????????????????????????? | | # """ #[!#???????????????????????????????? | | + " #%=#######"???????###??#########??? ? | | # #=*"""T""""??????? "??" #??? #? | | # #=[ "" """"??????? "??" #?? #? | | ###???#####!%*!%[ "??"""""" "??" ### #? | | ??????????#p=[!= "??" " "??" #? | | ??????????#*[=*%! "??" "" " "??" #? | | ??????????#%[%*= "??" @" " "??" #? | | ??????????#== "??" " ""?" #? | | ??????????#!= " """"" """ BB "##+####? | | ??????????#=*! " p p BBBB " #? | | ??????????#!%=[ " """" BB # #? | | ??????????#=|#######"####################" #? | | ??????????#*%#????##"" # # # #? | | ??????????#!=#?????####################### === #? | | ??????????#==?????????????????????????????? === #? | | ??????????# *?????????????????????????????? == #? | | ??????????+ ??????????????????????????????? #? | | ??????????# ??????????????????????????????? #? | | ???????????????p????????????????????????????? #? | | ???????????????p????????????????????????????? +? | | ?????????????????????????????????????????????? #? | | ?????????????????????????????????????????????? #? | | ??????????????????????????????????????????????? #? | | ???????????????????????????????????????????????##? | | ?????????????????????????????????????????????????? | | ?????????????????????????????????????????????????? | | ?????????????????????????????????????????????????? | | ?????????????????????????????????????????????????? | | ?????????????????????????????????????????????????? | | ?????????????????????????????????????????????????? | | ?????????????????????????????????????????????????? | +----------------------------------------------------+ Best States ------------- Heat Dissipation 52 Coolant Potential 100 Energy Generation 45 Energy Capacity 1515 Matter Stores 300 Matter Capacity 300 Sight Range 16 Terrain Scan Density 10 Armor Coverage 375 Resistance: KI 20 Evasion (%) 40 Recoil Reduction 6 Offensive Hacking 26 Defensive Hacking 16 Item Schematics ----------------- Shock Bomb Launcher | -7/Factory | Scanalyzed Robot Schematics ------------------ None Fabricated ------------ Nothing Alien Tech Used ----------------- None Achievements -------------- Infiltrator Pwned Challenges ------------ None Game ------ Seed AlloyMediumCompactor Manual? 0 Play Time 03:15:31 Cumulative 180.7 hours Start 2019.10.23 @ 17:39:30 End 2019.10.26 @ 11:46:58 Sessions 7 Manual Loads 0 Difficulty Rogue Special Mode None Game No. 102 Rogue 102 Adventurer 0 Explorer 0 Win Type 0 Total 7 Types 6/0/1/0/0/0/0 Lore% 60 Gallery% 72 Achievement% 54 Wizard Run 0 Options --------- ASCII 0 Keyboard 0 Movement Mouse Keybinds 0 Fullscreen 1 Font 18/SmallcapsGlow Map View 76x50 Tactical HUD 1 Map Filters NONE Filters NONE Steam 1 RUN: b74b139b-e668-4613-816d-d2b85508c6f9